bitfinex-derivatives/quotes_BNBF0:USTF0_20250509
["timestamp","ask_amount","ask_price","bid_price","bid_amount"]
[1746782738556,0.25744154,633.39,632.27,1.988]
[1746782738850,0.25744154,633.38,632.27,1.988]
[1746782739252,0.25744154,633.37,632.27,1.988]
[1746782739557,0.25744154,633.36,632.27,1.988]
[1746782739862,0.25744154,633.35,632.27,1.988]
[1746782740361,0.25744154,633.34,632.27,1.988]
[1746782740558,0.53255449,633.34,632.27,1.988]
[1746782740853,0.25744154,633.33,632.27,1.988]
[1746782741257,0.25744154,633.32,632.27,1.988]
[1746782741658,0.25744154,633.31,632.27,1.988]
[1746782742059,0.25744154,633.3,632.27,1.988]
[1746782742359,0.25744154,633.29,632.27,1.988]
[1746782742657,0.25744154,633.28,632.27,1.988]
[1746782743062,0.25744154,633.27,632.27,1.988]
[1746782743356,0.25744154,633.33,632.27,1.988]
[1746782744561,0.25744154,633.32,632.27,1.988]
[1746782744860,0.25744154,633.31,632.27,1.988]
[1746782745161,0.25744154,633.3,632.27,1.988]
[1746782745564,0.25744154,633.29,632.27,1.988]
[1746782745864,0.25744154,633.28,632.27,1.988]
[1746782746360,0.25744154,633.27,632.27,1.988]
[1746782746663,0.25744154,633.26,632.27,1.988]
[1746782746964,0.25744154,633.25,632.27,1.988]
[1746782747264,0.25744154,633.24,632.27,1.988]
[1746782747464,0.53255232,633.24,632.27,1.988]
[1746782747664,0.25744154,633.23,632.27,1.988]
[1746782748063,0.25744154,633.22,632.27,1.988]
[1746782748559,0.25744154,633.21,632.27,1.988]
[1746782748965,0.25744154,633.2,632.27,1.988]
[1746782749464,0.25744154,633.19,632.27,1.988]
[1746782749766,0.25744154,633.44,632.27,1.988]
[1746782750058,0.25744154,633.43,632.27,1.988]
[1746782750465,0.53256102,633.43,632.27,1.988]
[1746782750668,0.25744154,633.42,632.27,1.988]
[1746782750864,0.25744154,633.41,632.27,1.988]
[1746782751364,0.25744154,633.4,632.27,1.988]
[1746782751764,0.25744154,633.39,632.27,1.988]
[1746782752064,0.25744154,633.38,632.27,1.988]
[1746782752764,0.25744154,633.37,632.27,1.988]
[1746782752960,0.25744154,633.36,632.27,1.988]
[1746782753366,0.25744154,633.35,632.27,1.988]
[1746782753666,0.25744154,633.34,632.27,1.988]
[1746782753865,0.31579612,633.32,632.27,1.988]
[1746782754363,0.25744154,633.31,632.27,1.988]
[1746782754762,2.01121044,633.24,632.27,1.988]
[1746782755167,0.25744154,633.23,632.27,1.988]
[1746782756473,0.27510969,633.22,632.27,1.988]
[1746782756970,0.25744154,633.21,632.27,1.988]
[1746782757171,0.27510969,633.22,632.27,1.988]
[1746782757471,0.25981826,633.21,632.27,1.988]
[1746782760571,0.31586095,633.19,632.27,1.988]
[1746782760871,0.25981826,633.18,632.27,1.988]
[1746782764473,0.31587592,633.16,632.27,1.988]
[1746782764773,0.25981826,633.15,632.27,1.988]
[1746782765570,0.3158859,633.14,632.27,1.988]
[1746782765868,0.25981826,633.13,632.27,1.988]
[1746782766270,0.31590087,633.11,632.27,1.988]
[1746782766573,0.25981826,633.1,632.27,1.988]
[1746782767273,0.31591584,633.08,632.27,1.988]
[1746782767668,0.25981826,633.07,632.27,1.988]
[1746782768775,0.31592582,633.06,632.27,1.988]
[1746782769169,0.25981826,633.05,632.27,1.988]
[1746782769771,0.3159358,633.04,632.27,1.988]
[1746782770375,0.53495079,633.03,632.27,1.988]
[1746782770575,0.25981826,633.02,632.27,1.988]
[1746782771373,0.31595077,633.01,632.27,1.988]
[1746782771577,0.25981826,633.0,632.27,1.988]
[1746782772077,0.31596075,632.99,632.27,1.988]
[1746782772478,0.25981826,632.98,632.27,1.988]
[1746782772677,0.31597074,632.97,632.27,1.988]
[1746782772878,0.25981826,632.96,632.27,1.988]
[1746782773079,0.31598072,632.95,632.27,1.988]
[1746782773279,0.25981826,632.94,632.27,1.988]
[1746782773475,0.3159907,632.93,632.27,1.988]
[1746782774380,0.25981826,632.92,632.27,1.988]
[1746782774582,0.31600069,632.91,632.27,1.988]
[1746782774878,0.25981826,632.9,632.27,1.988]
[1746782776184,0.31601068,632.89,632.27,1.988]
[1746782776381,0.25981826,632.88,632.27,1.988]
[1746782776983,0.31602066,632.87,632.27,1.988]
[1746782777683,0.25981826,632.86,632.27,1.988]
[1746782779493,0.57584392,632.86,632.27,1.988]
[1746782779890,0.25981826,632.85,632.27,1.988]
[1746782781290,0.31603564,632.84,632.27,1.988]
[1746782781891,0.25981826,632.83,632.27,1.988]
[1746782782192,0.31604563,632.82,632.27,1.988]
[1746782782690,0.25981826,632.81,632.27,1.988]
[1746782782991,0.31605562,632.8,632.27,1.988]
[1746782783390,0.25981826,632.79,632.27,1.988]
[1746782783593,0.31606561,632.78,632.27,1.988]
[1746782783986,0.25981826,632.77,632.27,1.988]
[1746782784193,0.3160756,632.76,632.27,1.988]
[1746782784692,0.25981826,632.75,632.27,1.988]
[1746782784892,0.31608559,632.74,632.27,1.988]
[1746782785392,0.25981826,632.73,632.27,1.988]
[1746782785590,0.31609558,632.72,632.27,1.988]
[1746782785787,0.31609558,632.72,632.27,1.42]
[1746782785993,0.25981826,632.71,632.27,1.42]
[1746782788688,0.25981826,632.71,632.24,0.535]
[1746782790094,0.27544612,632.7,632.24,0.535]
[1746782790493,0.25981826,632.69,632.24,0.535]
[1746782791493,0.27545702,632.68,632.24,0.535]
[1746782791696,0.25981826,632.67,632.24,0.535]
[1746782793597,0.27545702,632.68,632.24,0.535]
[1746782793896,0.25970113,632.67,632.24,0.535]
[1746782797502,0.25970113,632.71,632.24,0.535]
[1746782798500,0.27524242,632.7,632.24,0.535]
[1746782799000,0.25970113,632.69,632.24,0.535]
[1746782800706,0.25970113,632.71,632.24,0.535]
[1746782801503,0.27526637,632.7,632.24,0.535]
[1746782801906,0.25970113,632.69,632.24,0.535]
[1746782803906,0.25970113,632.71,632.24,0.535]
[1746782807509,0.31609558,632.72,632.24,0.535]
[1746782807707,0.25981424,632.71,632.24,0.535]
[1746782807911,0.25981424,632.71,631.97,1.235]
[1746782808712,0.31609558,632.72,631.97,1.235]
[1746782809112,0.31609558,632.72,631.98,0.577]
[1746782809113,0.25971034,632.71,631.98,0.577]
[1746782810012,0.31609558,632.72,631.98,0.577]
[1746782810404,0.25960854,632.71,631.98,0.577]
[1746782810906,0.25960854,632.71,631.99,0.476]
[1746782811612,0.31609558,632.72,631.99,0.476]
[1746782812015,0.25937879,632.71,631.99,0.476]
[1746782813418,0.25937879,632.7,631.99,0.476]
[1746782813919,0.25937879,632.69,631.99,0.476]
[1746782814118,0.25937879,632.68,631.99,0.476]
[1746782814419,0.25937879,632.67,631.99,0.476]
[1746782814717,0.25937879,632.66,631.99,0.476]
[1746782815121,0.25937879,632.65,631.99,0.476]
[1746782815516,0.25937879,632.64,631.99,0.476]
[1746782815813,0.25937879,632.63,631.99,0.476]
[1746782816118,0.25937879,632.62,631.99,0.476]
[1746782816419,0.25937879,632.61,631.99,0.476]
[1746782816918,0.27541233,632.62,631.99,0.476]
[1746782817113,0.25937879,632.6,631.99,0.476]
[1746782817319,0.27541233,632.62,631.99,0.476]
[1746782817623,0.25900481,632.61,631.99,0.476]
[1746782822420,0.25900481,632.6,631.99,0.476]
[1746782822819,0.25900481,632.59,631.99,0.476]
[1746782823122,0.25900481,632.58,631.99,0.476]
[1746782824021,0.25900481,632.57,631.99,0.476]
[1746782824423,0.25900481,632.56,631.99,0.476]
[1746782824921,0.25900481,632.55,631.98,0.577]
[1746782825216,0.25900481,632.54,631.98,0.577]
[1746782825523,0.25900481,632.53,631.98,0.577]
[1746782825922,0.25900481,632.52,631.98,0.577]
[1746782826221,0.25900481,632.51,631.98,0.577]
[1746782826522,0.25900481,632.5,631.98,0.577]
[1746782827223,0.25900481,632.49,631.98,0.577]
[1746782827417,0.53451198,632.49,631.98,0.577]
[1746782827620,0.25900481,632.48,631.98,0.577]
[1746782827922,0.25900481,632.47,631.98,0.577]
[1746782828223,0.25900481,632.46,631.98,0.577]
[1746782828728,0.25900481,632.46,631.22,0.428]
[1746782829026,0.25900481,632.45,631.22,0.428]
[1746782829423,0.25900481,632.44,631.22,0.428]
[1746782829625,0.25900481,632.43,631.22,0.428]
[1746782829820,0.25900481,632.42,631.22,0.428]
[1746782830122,0.25900481,632.41,631.22,0.428]
[1746782830325,0.25900481,632.4,631.22,0.428]
[1746782830727,0.25900481,632.39,631.22,0.428]
[1746782831227,0.25900481,632.38,631.22,0.428]
[1746782831529,0.25900481,632.38,630.87,0.512]
[1746782831726,0.27575933,632.37,630.87,0.512]
[1746782832332,0.25900481,632.36,630.87,0.512]
[1746782833130,0.25900481,632.35,630.87,0.512]
[1746782833630,0.25900481,632.34,630.87,0.512]
[1746782833929,0.27575933,632.37,630.87,0.512]
[1746782834230,0.25883549,632.36,630.87,0.512]
[1746782834631,0.25883549,632.35,630.87,0.512]
[1746782834931,0.25883549,632.34,630.87,0.512]
[1746782835231,0.25883549,632.33,630.87,0.512]
[1746782835534,0.25883549,632.32,630.87,0.512]
[1746782835834,0.25883549,632.31,630.87,0.512]
[1746782836234,0.31609558,632.72,630.87,0.512]
[1746782836537,0.27575277,632.3,630.87,0.512]
[1746782836841,0.25887046,632.71,630.87,0.512]
[1746782837036,0.53462323,632.29,630.87,0.512]
[1746782837238,0.25887046,632.28,630.87,0.512]
[1746782837737,0.27573966,632.28,630.87,0.512]
[1746782837941,0.25892187,632.27,630.87,0.512]
[1746782838241,0.25892187,632.26,630.87,0.512]
[1746782838438,0.25892187,632.25,630.87,0.512]
[1746782838740,0.25892187,632.24,630.87,0.512]
[1746782839139,0.25892187,632.23,630.87,0.512]
[1746782839441,0.25892187,632.22,630.87,0.512]
[1746782839941,0.25892187,632.21,630.87,0.512]
[1746782840241,0.25892187,632.2,630.87,0.512]
[1746782840743,0.25892187,632.19,630.87,0.512]
[1746782841142,0.25892187,632.18,630.87,0.512]
[1746782841438,0.25892187,632.17,630.87,0.512]
[1746782841842,0.25892187,632.27,630.87,0.512]
[1746782842437,0.27572219,632.26,630.87,0.512]
[1746782842948,0.25892187,632.25,630.87,0.512]
[1746782843338,0.25892187,632.24,630.87,0.512]
[1746782843644,0.25892187,632.23,630.87,0.512]
[1746782843944,0.25892187,632.22,630.87,0.512]
[1746782844346,0.25892187,632.21,630.87,0.512]
[1746782844744,0.25892187,632.2,630.87,0.512]
[1746782845045,0.25892187,632.19,630.87,0.512]
[1746782845446,0.25892187,632.18,630.87,0.512]
[1746782845847,0.25892187,632.17,630.87,0.512]
[1746782846148,0.25892187,632.16,630.87,0.512]
[1746782846443,0.25892187,632.15,630.87,0.512]
[1746782846947,0.25892187,632.14,630.87,0.512]
[1746782847246,0.25892187,632.13,630.87,0.512]
[1746782847853,0.25892187,632.12,630.87,0.512]
[1746782848147,0.25892187,632.11,630.87,0.512]
[1746782848348,0.25892187,632.11,630.77,1.615]
[1746782848547,0.25892187,632.1,630.77,1.615]
[1746782849044,0.25892187,632.09,630.77,1.615]
[1746782849349,0.25892187,632.08,630.77,1.615]
[1746782849551,0.25892187,632.07,630.77,1.615]
[1746782849848,0.25892187,632.06,630.77,1.615]
[1746782850049,0.25892187,632.05,630.77,1.615]
[1746782850449,0.25892187,632.04,630.77,1.615]
[1746782850851,0.25892187,632.03,630.77,1.615]
[1746782851049,0.25892187,632.03,630.77,1.094]
[1746782851349,0.25892187,632.02,630.77,1.094]
[1746782852151,0.25892187,632.01,630.77,1.094]
[1746782852452,0.25892187,632.0,630.77,1.094]
[1746782852750,0.25892187,631.99,630.77,1.094]
[1746782852952,0.25892187,631.99,630.77,0.484]
[1746782853151,0.25892187,631.98,630.77,0.484]
[1746782853348,0.25892187,631.97,630.77,0.484]
[1746782853752,0.25892187,631.96,630.77,0.484]
[1746782854153,0.25892187,631.95,630.77,0.484]
[1746782854459,0.25892187,631.94,630.77,0.484]
[1746782854653,0.25892187,631.93,630.77,0.484]
[1746782854951,0.25892187,631.92,630.77,0.484]
[1746782855755,0.25892187,631.91,630.77,0.484]
[1746782856056,0.25892187,631.9,630.77,0.484]
[1746782856257,0.25892187,631.89,630.4,0.666]
[1746782856554,0.25892187,631.88,630.4,0.666]
[1746782857052,0.25892187,631.87,630.4,0.666]
[1746782857557,0.25892187,631.86,630.4,0.666]
[1746782858058,0.25892187,631.85,630.4,0.666]
[1746782858857,0.25892187,631.84,630.4,0.666]
[1746782859260,0.25892187,631.83,630.4,0.666]
[1746782859562,0.25892187,631.82,630.4,0.666]
[1746782859859,0.27593097,631.95,630.4,0.666]
[1746782859860,0.25892187,631.81,630.4,0.666]
[1746782860259,0.25892187,631.8,630.4,0.666]
[1746782860660,0.25892187,631.79,630.4,0.666]
[1746782860962,0.25892187,631.78,630.4,0.666]
[1746782861262,1.18185101,631.28,630.4,0.666]
[1746782861459,0.25892187,631.27,630.4,0.666]
[1746782862963,0.25892187,631.26,630.4,0.666]
[1746782863359,0.25892187,631.25,630.4,0.666]
[1746782863761,0.25892187,631.24,630.4,0.666]
[1746782864058,0.25892187,631.23,630.4,0.666]
[1746782864565,0.25892187,631.22,630.4,0.666]
[1746782864764,0.53492834,631.22,630.4,0.666]
[1746782864959,0.27600647,631.22,630.4,0.666]
[1746782865565,0.25932018,631.21,630.4,0.666]
[1746782865865,0.3168618,631.19,630.4,0.666]
[1746782866266,0.25932018,631.18,630.4,0.666]
[1746782868670,0.25932018,631.17,630.4,0.666]
[1746782868867,0.25932018,631.16,630.4,0.666]
[1746782869269,0.25932018,631.15,630.4,0.666]
[1746782869570,0.25932018,631.14,630.4,0.666]
[1746782869870,0.25932018,631.18,630.4,0.666]
[1746782872472,0.27605683,631.17,630.4,0.666]
[1746782872872,0.25932018,631.16,630.4,0.666]
[1746782873573,0.25932018,631.15,630.4,0.666]
[1746782873975,0.25932018,631.16,630.4,0.666]
[1746782875471,0.25932018,631.15,630.4,0.666]
[1746782875877,0.25932018,631.14,630.4,0.666]
[1746782876172,0.25932018,631.13,630.4,0.666]
[1746782876476,0.27605683,631.17,630.4,0.666]
[1746782877078,0.25977913,631.16,630.4,0.666]
[1746782879175,0.25977913,631.15,630.4,0.666]
[1746782879679,0.25977913,631.16,630.4,0.666]
[1746782879879,0.25977913,631.15,630.4,0.666]
[1746782880378,0.25977913,631.14,630.4,0.666]
[1746782880979,0.25977913,631.13,630.4,0.666]
[1746782881379,0.25977913,631.16,630.4,0.666]
[1746782882180,0.25977913,631.15,630.4,0.666]
[1746782882581,0.25977913,631.14,630.4,0.666]
[1746782882779,0.25977913,631.13,630.4,0.666]
[1746782883082,0.25977913,631.12,630.4,0.666]
[1746782884079,1.18743746,631.03,630.4,0.666]
[1746782884284,0.25977913,631.02,630.4,0.666]
[1746782885582,0.27604588,631.01,630.4,0.666]
[1746782885783,0.25977913,631.0,630.4,0.666]
[1746782887692,0.31696223,630.99,630.4,0.666]
[1746782888286,0.25977913,630.98,630.4,0.666]
[1746782889083,1.19658599,630.73,630.4,0.666]
[1746782889488,0.25977913,630.72,630.4,0.666]
[1746782889889,0.25977913,630.71,630.4,0.666]
[1746782890187,0.25977913,630.72,630.4,0.666]
[1746782891892,1.19658599,630.66,630.4,0.666]
[1746782892090,1.19658599,630.66,630.37,0.437]
[1746782892586,1.19658599,630.66,629.97,0.531]
[1746782892789,0.25977913,630.65,629.97,0.531]
[1746782894190,0.27634949,630.64,629.97,0.531]
[1746782894586,0.25977913,630.63,629.97,0.531]
[1746782896192,0.25977913,630.63,629.57,0.549]
[1746782896389,0.25977913,630.63,629.67,0.662]
[1746782896791,0.27634949,630.64,629.67,0.662]
[1746782897092,0.26084829,630.63,629.67,0.662]
[1746782899191,0.26084829,630.62,629.67,0.662]
[1746782899493,0.53714292,630.62,629.67,0.662]
[1746782899794,0.27629463,630.62,629.67,0.662]
[1746782900191,0.26077243,630.61,629.67,0.662]
[1746782901292,0.26077243,630.6,629.67,0.662]
[1746782901491,0.26077243,630.59,629.67,0.662]
[1746782901791,0.26077243,630.61,629.67,0.662]
[1746782902493,0.26077243,630.6,629.67,0.662]
[1746782902793,0.27629463,630.62,629.67,0.662]
[1746782902794,0.26077243,630.61,629.67,0.662]
[1746782903287,0.26077243,630.6,629.67,0.662]
[1746782904691,0.26077243,630.59,629.67,0.662]
[1746782905191,0.26077243,630.61,629.67,0.662]
[1746782905493,0.27626941,630.58,629.67,0.662]
[1746782905890,0.26077243,630.57,629.67,0.662]
[1746782909089,0.26077243,630.56,629.67,0.662]
[1746782909393,0.26077243,630.57,629.67,0.662]
[1746782910096,0.31718341,630.55,629.67,0.662]
[1746782910595,0.26077243,630.54,629.67,0.662]
[1746782913106,0.26077243,630.54,629.67,1.137]
[1746782914706,0.26077243,630.53,629.67,1.137]
[1746782915105,0.26077243,630.54,629.67,1.137]
[1746782915499,0.26077243,630.53,629.67,1.137]
[1746782915998,0.26077243,630.52,629.67,1.137]
[1746782916204,0.26077243,630.51,629.67,1.137]
[1746782916404,0.26077243,630.51,629.67,0.662]
[1746782916601,0.26077243,630.5,629.67,0.662]
[1746782916805,0.53716472,630.5,629.67,0.662]
[1746782917608,0.26077243,630.49,629.67,0.662]
[1746782918608,1.19658599,630.42,629.67,0.662]
[1746782919009,0.26077243,630.41,629.67,0.662]
[1746782920505,0.2763462,630.4,629.67,0.662]
[1746782921008,0.26077243,630.39,629.67,0.662]
[1746782921411,0.2763462,630.4,629.67,0.662]
[1746782921913,0.26099319,630.39,629.67,0.662]
[1746782929014,0.31726894,630.38,629.67,0.662]
[1746782929614,0.26099319,630.37,629.67,0.662]
[1746782932219,0.31727901,630.36,629.67,0.662]
[1746782932421,0.26099319,630.35,629.67,0.662]
[1746782932717,0.31727901,630.36,629.67,0.662]
[1746782933117,0.26082545,630.35,629.67,0.662]
[1746782937919,0.31727901,630.36,629.67,0.662]
[1746782938716,0.31727901,630.36,629.67,1.164]
[1746782938922,0.26076023,630.35,629.67,1.164]
[1746782939220,0.31727901,630.36,629.67,1.164]
[1746782939621,0.26075087,630.35,629.67,1.164]
[1746782941023,0.26075087,630.35,629.67,1.777]
[1746782945224,0.26075087,630.35,629.67,2.267]
[1746782948723,0.26075087,630.35,629.67,1.605]
[1746782949023,0.26075087,630.34,629.67,1.605]
[1746782949323,0.26075087,630.33,629.67,1.605]
[1746782949722,0.26075087,630.32,629.67,1.605]
[1746782949924,0.26075087,630.31,629.67,1.605]
[1746782950226,0.26075087,630.3,629.67,1.605]
[1746782950526,0.53712121,630.3,629.67,1.605]
[1746782950726,0.26075087,630.29,629.67,1.605]
[1746782950928,0.26075087,630.28,629.67,1.605]
[1746782951321,0.26075087,630.27,629.67,1.605]
[1746782951622,0.26075087,630.29,629.67,1.605]
[1746782952830,0.26075087,630.29,629.67,1.103]
[1746782953529,0.26075087,630.35,629.67,1.103]
[1746782954630,0.27632425,630.34,629.67,1.103]
[1746782955030,0.26075087,630.33,629.67,1.103]
[1746782955230,0.26075087,630.33,629.67,1.675]
[1746782956532,0.26075087,630.35,629.67,1.675]
[1746782956729,0.27630231,630.32,629.67,1.675]
[1746782957124,0.31730418,630.31,629.67,1.675]
[1746782957327,0.57805505,630.31,629.67,1.675]
[1746782957632,0.26075087,630.3,629.67,1.675]
[1746782959133,0.31730418,630.31,629.67,1.675]
[1746782959431,0.26163517,630.3,629.67,1.675]
[1746782962138,0.31730418,630.31,629.67,1.675]
[1746782966833,0.31730418,630.31,629.67,2.318]
[1746782974541,0.31730418,630.31,629.68,0.29163501]
[1746782975039,0.31730418,630.31,629.67,1.215]
[1746782975240,0.31730418,630.31,629.67,0.643]
[1746782977045,0.31730418,630.31,629.67,1.174]
[1746782977345,0.31730418,630.31,629.67,1.68]
[1746782979148,0.31730418,630.31,629.67,2.253]
[1746783018268,0.31730418,630.31,629.67,1.61]
[1746783021473,0.31730418,630.31,629.67,0.531]
[1746783022172,0.31730418,630.31,629.53,0.499]
[1746783022878,0.26058159,630.3,629.53,0.499]
[1746783025773,0.31730418,630.31,629.53,0.499]
[1746783027376,0.26027092,630.3,629.53,0.499]
[1746783028175,0.31730418,630.31,629.53,0.499]
[1746783034676,0.31730418,630.31,629.54,0.29166432]
[1746783036380,0.31730418,630.31,629.53,0.499]
[1746783036984,0.31730418,630.31,629.54,0.29166776]
[1746783037382,0.31730418,630.31,629.53,0.499]
[1746783044481,0.31730418,630.31,629.54,0.29154595]
[1746783049993,0.31730418,630.31,629.53,0.499]
[1746783058097,0.26023201,630.3,629.53,0.499]
[1746783059696,0.31730418,630.31,629.53,0.499]
[1746783059995,0.26015465,630.3,629.53,0.499]
[1746783061692,0.27635497,630.29,629.53,0.499]
[1746783062300,0.26015465,630.28,629.53,0.499]
[1746783064503,0.26015465,630.3,629.53,0.499]
[1746783064698,0.27635278,630.27,629.53,0.499]
[1746783065101,0.26015465,630.26,629.53,0.499]
[1746783066302,0.26015465,630.26,629.26,0.772]
[1746783067602,0.27639009,630.25,629.26,0.772]
[1746783067903,0.26015465,630.24,629.26,0.772]
[1746783070002,0.26015465,630.24,629.27,0.619]
[1746783073609,0.27639338,630.23,629.27,0.619]
[1746783074005,0.26015465,630.22,629.27,0.619]
[1746783074302,0.27639338,630.23,629.27,0.619]
[1746783074710,0.25986636,630.22,629.27,0.619]
[1746783076111,0.27639338,630.23,629.27,0.619]
[1746783076407,0.31730418,630.31,629.27,0.619]
[1746783076613,0.27635168,630.23,629.27,1.361]
[1746783077013,0.26011864,630.3,629.27,1.361]
[1746783077213,0.26011864,630.22,629.27,1.361]
[1746783077508,0.26011864,630.3,629.27,1.361]
[1746783080913,0.26011864,630.3,629.27,2.44]
[1746783081919,0.27632535,630.35,629.27,2.44]
[1746783083017,0.25998441,630.34,629.27,2.44]
[1746783083616,0.2761324,630.42,629.27,2.44]
[1746783084017,0.25998441,630.41,629.27,2.44]
[1746783084517,0.27610063,630.51,629.27,2.44]
[1746783084709,0.25998441,630.5,629.27,2.44]
[1746783085819,0.25998441,630.54,629.28,0.29181154]
[1746783088622,0.25998441,630.64,629.28,0.29181154]
[1746783089221,0.25998441,630.64,629.27,2.44]
[1746783090025,0.25998441,630.64,629.28,0.29173012]
[1746783091919,0.25998441,630.69,629.27,2.44]
[1746783092423,0.25998441,630.69,629.28,0.29179406]
[1746783093219,0.25998441,630.69,629.27,1.698]
[1746783094822,0.27614445,630.68,629.28,0.29181718]
[1746783095124,0.25998441,630.67,629.28,0.29181718]
[1746783095420,0.25998441,630.67,629.27,1.698]
[1746783096325,0.25998441,630.67,629.27,2.435]
[1746783097126,0.27614445,630.68,629.27,2.435]
[1746783097522,0.25972268,630.67,629.27,2.435]
[1746783097726,0.27619157,630.67,629.29,0.31781849]
[1746783098023,0.25972268,630.66,629.29,0.31781849]
[1746783100128,0.27619157,630.67,629.29,0.31781849]
[1746783100329,0.25963572,630.66,629.29,0.31781849]
[1746783101129,1.18937049,631.27,629.29,0.31781849]
[1746783101327,0.31682666,631.26,629.29,0.31781849]
[1746783101528,0.57646238,631.26,629.29,0.31781849]
[1746783101730,0.25963572,631.25,629.29,0.31781849]
[1746783102130,0.25963572,631.24,629.29,0.31781849]
[1746783102432,0.25963572,631.23,629.29,0.31781849]
[1746783102631,0.53583058,631.23,629.29,0.31781849]
[1746783102831,0.25963572,631.22,629.29,0.31781849]
[1746783103126,0.25963572,631.21,629.29,0.31781849]
[1746783103529,0.25963572,631.2,629.29,0.31781849]
[1746783103728,0.53583496,631.2,629.29,0.31781849]
[1746783103931,0.25963572,631.19,629.29,0.31781849]
[1746783104230,0.25963572,631.18,629.29,0.31781849]
[1746783104530,0.25963572,631.17,629.29,0.31781849]
[1746783104927,0.25963572,631.16,629.29,0.31781849]
[1746783105227,0.25963572,631.15,629.29,0.31781849]
[1746783105527,0.25963572,631.14,629.29,0.31781849]
[1746783105932,0.25963572,631.13,629.29,0.31781849]
[1746783106333,0.27619924,631.2,629.29,0.31781849]
[1746783106935,0.26011454,631.19,629.29,0.31781849]
[1746783108534,0.26011454,631.19,629.29,0.78081849]
[1746783110034,0.26011454,631.18,629.29,0.78081849]
[1746783110431,0.26011454,631.17,629.29,0.78081849]
[1746783110734,0.26011454,631.16,629.29,0.78081849]
[1746783111036,0.27619924,631.2,629.29,0.78081849]
[1746783111338,0.26011152,631.19,629.29,0.78081849]
[1746783111638,0.26011152,631.18,629.29,0.78081849]
[1746783111937,0.26011152,631.17,629.29,0.78081849]
[1746783112338,0.26011152,631.16,629.29,0.78081849]
[1746783112539,0.26011152,631.15,629.29,0.78081849]
[1746783112935,0.26011152,631.14,629.29,0.78081849]
[1746783113241,0.26011152,631.13,629.29,0.78081849]
[1746783113641,0.26011152,631.12,629.29,0.78081849]
[1746783114241,0.26011152,631.11,629.29,0.78081849]
[1746783114540,0.27617513,631.16,629.29,0.78081849]
[1746783114541,0.26011152,631.15,629.29,0.78081849]
[1746783115040,0.26011152,631.15,629.29,1.43881849]
[1746783116440,0.26011152,631.15,629.29,2.10481849]
[1746783117039,0.26011152,631.14,629.29,2.10481849]
[1746783117640,0.26011152,631.13,629.29,2.10481849]
[1746783118035,0.26011152,631.12,629.29,2.10481849]
[1746783118641,0.53632392,631.11,629.29,2.10481849]
[1746783119143,0.26011152,631.1,629.29,2.10481849]
[1746783120041,0.2762124,631.11,629.29,2.10481849]
[1746783122444,0.25979408,631.1,629.29,2.10481849]
[1746783122742,0.25979408,631.09,629.29,2.10481849]
[1746783123143,0.2762124,631.11,629.29,2.10481849]
[1746783123343,0.25980376,631.1,629.29,2.10481849]
[1746783123643,0.25980376,631.09,629.29,2.10481849]
[1746783123845,0.25980376,631.08,629.29,2.10481849]
[1746783124143,0.25980376,631.07,629.29,2.10481849]
[1746783124344,0.25980376,631.06,629.29,2.10481849]
[1746783124740,0.25980376,631.05,629.29,2.10481849]
[1746783124944,0.25980376,631.04,629.29,2.10481849]
[1746783125144,0.25980376,631.03,629.29,2.10481849]
[1746783125346,0.25980376,631.02,629.29,2.10481849]
[1746783125647,0.25980376,631.01,629.29,2.10481849]
[1746783125846,0.25980376,631.0,629.29,2.10481849]
[1746783126145,0.25980376,630.99,629.29,2.10481849]
[1746783126346,0.25980376,630.98,629.29,2.10481849]
[1746783126647,0.25980376,631.1,629.29,2.10481849]